fUST/lending_fUST_20251004
["ID","MTS","AMOUNT","RATE_DAILY","PERIOD"]
[389003305,1759560618371,165.48979364,0.000287,120]
[389003485,1759560637937,-628.67,0.00018989,2]
[389003487,1759560637946,-1000.0,0.00018989,2]
[389003489,1759560637956,-660.49913898,0.00019889,2]
[389003491,1759560637965,-157.988766,0.00019924,2]
[389003493,1759560637979,-1200.0,0.00019987,2]
[389003495,1759560637989,-182.0,0.00019987,2]
[389003497,1759560637998,-300.0,0.00019987,2]
[389003499,1759560638007,-180.0,0.00019987,2]
[389003501,1759560638018,-1200.0,0.00019987,2]
[389003503,1759560638027,-300.0,0.00019987,2]
[389003505,1759560638036,-295.78825911,0.00019989,2]
[389003507,1759560638049,-192.57234112,0.00019989,2]
[389003509,1759560638058,-500.0,0.00019989,2]
[389003511,1759560638067,-500.0,0.00019989,2]
[389003513,1759560638076,-500.0,0.00019989,2]
[389003515,1759560638086,-500.0,0.00019989,2]
[389003517,1759560638095,-500.0,0.00019989,2]
[389003519,1759560638104,-185.25109938,0.00019989,2]
[389003521,1759560638114,-500.0,0.00019989,2]
[389003523,1759560638123,-500.0,0.00019989,2]
[389003525,1759560638132,-500.0,0.00019989,2]
[389003527,1759560638141,-500.0,0.00019989,2]
[389003529,1759560638150,-500.0,0.00019989,2]
[389003530,1759560638159,-500.0,0.00019989,2]
[389003532,1759560638168,-500.0,0.00019989,2]
[389003535,1759560638178,-500.0,0.00019989,2]
[389003536,1759560638187,-328.4100834,0.00019989,2]
[389003538,1759560638197,-500.0,0.00019989,2]
[389003542,1759560638217,-500.0,0.00019989,2]
[389003544,1759560638228,-500.0,0.00019989,2]
[389003546,1759560638237,-500.0,0.00019989,2]
[389003548,1759560638247,-500.0,0.00019989,2]
[389003550,1759560638256,-500.0,0.00019989,2]
[389003552,1759560638266,-500.0,0.00019989,2]
[389003554,1759560638275,-500.0,0.00019989,2]
[389003556,1759560638284,-500.0,0.00019989,2]
[389003558,1759560638294,-500.0,0.00019989,2]
[389003560,1759560638304,-500.0,0.00019989,2]
[389003562,1759560638314,-500.0,0.00019989,2]
[389003564,1759560638323,-500.0,0.00019989,2]
[389003566,1759560638334,-500.0,0.00019989,2]
[389003568,1759560638343,-500.0,0.00019989,2]
[389003570,1759560638353,-500.0,0.00019989,2]
[389003572,1759560638364,-500.0,0.00019989,2]
[389003574,1759560638373,-500.0,0.00019989,2]
[389003576,1759560638383,-500.0,0.00019989,2]
[389003578,1759560638392,-500.0,0.00019989,2]
[389003580,1759560638401,-500.0,0.00019989,2]
[389003582,1759560638411,-500.0,0.00019989,2]
[389003584,1759560638421,-224.61068444,0.00019989,2]
[389003586,1759560638431,-500.0,0.00019989,2]
[389003588,1759560638440,-500.0,0.00019989,2]
[389003590,1759560638449,-177.01578627,0.00019989,2]
[389003592,1759560638458,-500.0,0.00019989,2]
[389003594,1759560638467,-500.0,0.00019989,2]
[389003596,1759560638477,-500.0,0.00019989,2]
[389003598,1759560638486,-500.0,0.00019989,2]
[389003600,1759560638495,-500.0,0.00019989,2]
[389003602,1759560638504,-500.0,0.00019989,2]
[389003604,1759560638514,-500.0,0.00019989,2]
[389003606,1759560638523,-500.0,0.00019989,2]
[389003608,1759560638533,-500.0,0.00019989,2]
[389003610,1759560638543,-611.10880392,0.00019989,2]
[389003612,1759560638553,-500.0,0.00019989,2]
[389003614,1759560638563,-500.0,0.00019989,2]
[389003616,1759560638572,-500.0,0.00019989,2]
[389003618,1759560638582,-500.0,0.00019989,2]
[389003620,1759560638591,-500.0,0.00019989,2]
[389003622,1759560638601,-500.0,0.00019989,2]
[389003624,1759560638611,-500.0,0.00019989,2]
[389003626,1759560638621,-500.0,0.00019989,2]
[389003628,1759560638630,-500.0,0.00019989,2]
[389003630,1759560638639,-500.0,0.00019989,2]
[389003632,1759560638649,-381.61303997,0.00019989,2]
[389003634,1759560638659,-500.0,0.00019989,2]
[389003637,1759560638668,-500.0,0.00019989,2]
[389003639,1759560638679,-500.0,0.00019989,2]
[389003641,1759560638688,-500.0,0.00019989,2]
[389003643,1759560638698,-658.57620859,0.00019989,2]
[389003644,1759560638707,-500.0,0.00019989,2]
[389003646,1759560638717,-2858.34322506,0.00019989,2]
[389003649,1759560638727,-100000.0,0.0001999,2]
[389003651,1759560638737,-500.0,0.00020263,2]
[389003652,1759560638748,-517.32525843,0.00020537,2]
[389003655,1759560638758,-439.19725705,0.00020631,2]
[389003657,1759560638767,-2360.8693555,0.00020673,2]
[389003658,1759560638777,-621.83,0.0002069,3]
[389003660,1759560638787,-310.92,0.0002069,3]
[389003662,1759560638797,-155.46,0.0002069,3]
[389003664,1759560638806,-466.39,0.0002069,3]
[389003666,1759560638816,-204.90416361,0.00020699,2]
[389003668,1759560638826,-11744.71678718,0.000207,2]
[389003670,1759560638835,-500.0,0.00020773,2]
[389003673,1759560638844,-500.0,0.00020773,2]
[389003675,1759560638854,-582.67825345,0.00020773,2]
[389003676,1759560638863,-502.71436461,0.00020773,2]
[389003678,1759560638873,-500.0,0.00020773,2]
[389003680,1759560638882,-500.47985645,0.00020773,2]
[389003683,1759560638892,-500.0,0.00020773,2]
[389003685,1759560638902,-500.0,0.00020773,2]
[389003687,1759560638911,-277.26491631,0.00020773,2]
[389003688,1759560638921,-500.0,0.00020773,2]
[389003690,1759560638930,-500.0,0.00020773,2]
[389003693,1759560638940,-500.0,0.00020773,2]
[389003694,1759560638950,-500.0,0.00020773,2]
[389003696,1759560638960,-502.00263187,0.00020773,2]
[389003698,1759560638972,-500.0,0.00020773,2]
[389003701,1759560638989,-500.75190857,0.00020773,2]
[389003702,1759560638999,-498.21899591,0.00020773,2]
[389003704,1759560639008,-500.50834173,0.00020773,2]
[389003706,1759560639019,-500.0,0.00020773,2]
[389003709,1759560639029,-500.0,0.00020773,2]
[389003710,1759560639039,-394.70114169,0.00020773,2]
[389003712,1759560639048,-500.0,0.00020773,2]
[389003715,1759560639059,-500.0,0.00020773,2]
[389003716,1759560639068,-207.69532041,0.00020773,2]
[389003719,1759560639078,-500.0,0.00020773,2]
[389003720,1759560639087,-500.0,0.00020773,2]
[389003722,1759560639096,-500.0,0.00020773,2]
[389003725,1759560639106,-500.0,0.00020773,2]
[389003726,1759560639115,-500.0,0.00020773,2]
[389003728,1759560639124,-500.0,0.00020773,2]
[389003730,1759560639134,-507.37597527,0.00020773,2]
[389003732,1759560639144,-1243.66,0.0002079,3]
[389003734,1759560639154,-370000.0,0.000208,2]
[389003736,1759560639164,-500.0,0.000208,2]
[389003738,1759560639173,-500.0,0.000208,2]
[389003740,1759560639182,-92613.50999449,0.000209,2]
[389003742,1759560639192,-151.203952,0.000209,2]
[389003744,1759560639201,-169.171735,0.000209,2]
[389003746,1759560639211,-151.0,0.000209,2]
[389003748,1759560639220,-153.813449,0.000209,2]
[389003750,1759560639230,-151.0,0.000209,2]
[389003752,1759560639239,-151.0,0.000209,2]
[389003754,1759560639249,-249.046014,0.000209,2]
[389003756,1759560639259,-151.0,0.000209,2]
[389003758,1759560639268,-153.375003,0.000209,2]
[389003760,1759560639278,-151.0,0.000209,2]
[389003762,1759560639287,-290.435646,0.000209,2]
[389003763,1759560639296,-151.0,0.000209,2]
[389003764,1759560639305,-151.0,0.000209,2]
[389003765,1759560639314,-151.0,0.000209,2]
[389003766,1759560639324,-151.0,0.000209,2]
[389003767,1759560639334,-151.0,0.000209,2]
[389003768,1759560639343,-151.0,0.000209,2]
[389003769,1759560639352,-151.0,0.000209,2]
[389003770,1759560639361,-151.0,0.000209,2]
[389003771,1759560639370,-151.0,0.000209,2]
[389003773,1759560639379,-151.0,0.000209,2]
[389003775,1759560639388,-151.0,0.000209,2]
[389003777,1759560639397,-151.0,0.000209,2]
[389003779,1759560639406,-151.0,0.000209,2]
[389003781,1759560639415,-151.0,0.000209,2]
[389003783,1759560639424,-151.0,0.000209,2]
[389003785,1759560639433,-151.0,0.000209,2]
[389003787,1759560639442,-232.160792,0.000209,2]
[389003789,1759560639452,-232.160792,0.000209,2]
[389003791,1759560639461,-232.160792,0.000209,2]
[389003793,1759560639470,-232.160792,0.000209,2]
[389003795,1759560639479,-151.0,0.000209,2]
[389003797,1759560639488,-151.0,0.000209,2]
[389003799,1759560639498,-151.0,0.000209,2]
[389003801,1759560639507,-298.617692,0.000209,2]
[389003803,1759560639516,-170.708088,0.000209,2]
[389003805,1759560639525,-151.0,0.000209,2]
[389003807,1759560639534,-151.0,0.000209,2]
[389003809,1759560639543,-151.0,0.000209,2]
[389003811,1759560639552,-151.0,0.000209,2]
[389003813,1759560639561,-555.555692,0.000209,2]
[389003815,1759560639571,-555.555692,0.000209,2]
[389003817,1759560639580,-151.0,0.000209,2]
[389003819,1759560639590,-555.555692,0.000209,2]
[389003821,1759560639599,-555.555692,0.000209,2]
[389003823,1759560639608,-151.0,0.000209,2]
[389003825,1759560639618,-151.0,0.000209,2]
[389003827,1759560639627,-151.0,0.000209,2]
[389003829,1759560639636,-151.0,0.000209,2]
[389003831,1759560639646,-688.080128,0.000209,2]
[389003833,1759560639655,-688.080128,0.000209,2]
[389003835,1759560639665,-688.080128,0.000209,2]
[389003837,1759560639674,-151.0,0.000209,2]
[389003839,1759560639683,-151.0,0.000209,2]
[389003841,1759560639692,-151.0,0.000209,2]
[389003844,1759560639702,-151.0,0.000209,2]
[389003845,1759560639712,-151.0,0.000209,2]
[389003848,1759560639721,-151.0,0.000209,2]
[389003850,1759560639731,-151.0,0.000209,2]
[389003852,1759560639740,-151.0,0.000209,2]
[389003854,1759560639751,-151.0,0.000209,2]
[389003856,1759560639760,-151.0,0.000209,2]
[389003857,1759560639770,-151.0,0.000209,2]
[389003860,1759560639780,-151.0,0.000209,2]
[389003862,1759560639789,-151.0,0.000209,2]
[389003863,1759560639799,-151.0,0.000209,2]
[389003865,1759560639809,-151.0,0.000209,2]
[389003868,1759560639820,-154.157323,0.000209,2]
[389003869,1759560639830,-151.0,0.000209,2]
[389003871,1759560639839,-151.0,0.000209,2]
[389003873,1759560639849,-151.0,0.000209,2]
[389003876,1759560639858,-151.0,0.000209,2]
[389003904,1759560640119,-151.0,0.000209,2]
[389003906,1759560640130,-151.0,0.000209,2]
[389003908,1759560640139,-151.0,0.000209,2]
[389003910,1759560640147,-151.0,0.000209,2]
[389003912,1759560640157,-161.337219,0.000209,2]
[389003914,1759560640166,-151.0,0.000209,2]
[389003916,1759560640176,-151.0,0.000209,2]
[389003918,1759560640186,-151.0,0.000209,2]
[389003920,1759560640195,-151.0,0.000209,2]
[389003922,1759560640205,-151.0,0.000209,2]
[389003924,1759560640214,-151.10690858,0.000209,2]
[389003926,1759560640223,-2360.86935548,0.00020959,2]
[389003928,1759560640232,-151.0,0.0002099,2]
[389003930,1759560640241,-151.0,0.0002099,2]
[389003932,1759560640252,-151.0,0.0002099,2]
[389003934,1759560640262,-151.0,0.0002099,2]
[389003936,1759560640271,-151.0,0.0002099,2]
[389003939,1759560640281,-152.79694186,0.0002099,2]
[389003940,1759560640291,-151.0,0.0002099,2]
[389003943,1759560640301,-151.0,0.0002099,2]
[389003945,1759560640310,-151.0,0.0002099,2]
[389003946,1759560640320,-151.0,0.0002099,2]
[389003948,1759560640329,-151.0,0.0002099,2]
[389003951,1759560640339,-627.57,0.0002099,2]
[389003952,1759560640348,-627.57,0.0002099,2]
[389003954,1759560640358,-627.57,0.0002099,2]
[389003956,1759560640368,-627.57,0.0002099,2]
[389003959,1759560640378,-214.3763659,0.00020996,2]
[389003961,1759560640387,-567.84,0.00021074,2]
[389003963,1759560640397,-567.84,0.00021074,2]
[389003965,1759560640408,-2360.86935548,0.00021245,2]
[389003967,1759560640417,-504.20138525,0.00021321,2]
[389003969,1759560640425,-660.19102542,0.00021321,2]
[389003971,1759560640434,-1000.0,0.00021321,2]
[389003973,1759560640444,-1000.0,0.00021321,2]
[389003975,1759560640452,-1000.0,0.00021321,2]
[389003976,1759560640461,-1000.0,0.00021321,2]
[389003977,1759560640470,-797.79736172,0.00021321,2]
[389003979,1759560640479,-500.98610482,0.00021321,2]
[389003981,1759560640488,-1000.0,0.00021321,2]
[389003983,1759560640497,-1000.0,0.00021321,2]
[389003985,1759560640506,-1000.0,0.00021321,2]
[389003987,1759560640515,-1000.0,0.00021321,2]
[389003989,1759560640524,-504.26767412,0.00021321,2]
[389003991,1759560640535,-500.0,0.00021321,2]
[389003994,1759560640544,-1000.0,0.00021321,2]
[389003996,1759560640553,-1000.0,0.00021321,2]
[389003998,1759560640562,-1001.2192186,0.00021321,2]
[389003999,1759560640572,-1000.0,0.00021321,2]
[389004001,1759560640581,-1000.0,0.00021321,2]
[389004003,1759560640591,-660.49913893,0.00021444,2]
[389004005,1759560640601,-151.0,0.000215,3]
[389004008,1759560640611,-2360.86935548,0.00021531,2]
[389004010,1759560640621,-11744.71678717,0.00021533,2]
[389004012,1759560640630,-1756.78902821,0.00021612,2]
[389004014,1759560640640,-151.0,0.000217,4]
[389004016,1759560640649,-882.0,0.00021764,2]
[389004018,1759560640659,-182.0,0.00021764,2]
[389004020,1759560640668,-420.0,0.00021764,2]
[389004022,1759560640677,-672.54996428,0.00021791,2]
[389004024,1759560640686,-2360.86935548,0.00021817,2]
[389004026,1759560640695,-176.6361439,0.00021817,2]
[389004028,1759560640704,-151.0,0.00021868,2]
[389004030,1759560640714,-151.0,0.00021868,2]
[389004031,1759560640723,-151.0,0.00021868,2]
[389004033,1759560640732,-151.0,0.00021868,2]
[389004035,1759560640742,-151.0,0.00021868,2]
[389004037,1759560640751,-151.0,0.00021868,2]
[389004039,1759560640760,-151.0,0.00021868,2]
[389004042,1759560640770,-151.0,0.00021868,2]
[389004044,1759560640779,-151.000001,0.00021868,2]
[389004045,1759560640789,-151.0,0.00021868,2]
[389004047,1759560640799,-151.0,0.00021868,2]
[389004050,1759560640808,-151.0,0.00021868,2]
[389004052,1759560640818,-151.0,0.00021868,2]
[389004054,1759560640827,-720.0,0.00021868,2]
[389004056,1759560640837,-151.0,0.00021868,2]
[389004058,1759560640846,-151.0,0.00021868,2]
[389004060,1759560640855,-151.0,0.00021868,2]
[389004062,1759560640864,-151.0,0.00021868,2]
[389004064,1759560640874,-282.633257,0.00021868,2]
[389004066,1759560640883,-502.59632812,0.00021868,2]
[389004068,1759560640892,-1500.0,0.00021868,2]
[389004070,1759560640901,-1500.0,0.00021868,2]
[389004072,1759560640911,-1500.0,0.00021868,2]
[389004074,1759560640919,-508.77884162,0.00021868,2]
[389004076,1759560640928,-503.49964622,0.00021868,2]
[389004078,1759560640938,-1504.3031916,0.00021868,2]
[389004080,1759560640947,-1500.0,0.00021868,2]
[389004082,1759560640957,-1500.0,0.00021868,2]
[389004084,1759560640967,-1500.0,0.00021868,2]
[389004086,1759560640980,-1500.0,0.00021868,2]
[389004088,1759560640990,-1500.0,0.00021868,2]
[389004090,1759560640999,-155.42,0.00021916,2]
[389004092,1759560641008,-500.0,0.00021917,2]
[389004094,1759560641019,-500.02578616,0.00021917,2]
[389004096,1759560641028,-500.0,0.00021917,2]
[389004098,1759560641040,-500.0,0.00021917,2]
[389004100,1759560641053,-632.05154757,0.00021917,2]
[389004102,1759560641063,-500.0,0.00021917,2]
[389004104,1759560641072,-500.0,0.00021917,2]
[389004106,1759560641082,-625.55098373,0.00021917,2]
[389004108,1759560641091,-500.0,0.00021917,2]
[389004110,1759560641100,-630.28631653,0.00021917,2]
[389004112,1759560641110,-3467.86,0.00021917,2]
[389004114,1759560641119,-646.0,0.00021917,2]
[389004116,1759560641128,-500.0,0.00021917,2]
[389004118,1759560641137,-500.0,0.00021917,2]
[389004120,1759560641146,-484.08523051,0.00021917,2]
[389004122,1759560641155,-520.0,0.00021917,3]
[389004124,1759560641164,-509.08508407,0.00021917,2]
[389004126,1759560641173,-500.0,0.00021917,2]
[389004128,1759560641182,-500.0,0.00021917,2]
[389004130,1759560641191,-500.0,0.00021917,2]
[389004132,1759560641200,-599.69,0.00021917,2]
[389004134,1759560641209,-500.0,0.00021917,2]
[389004136,1759560641218,-500.0,0.00021917,2]
[389004138,1759560641227,-500.0,0.00021917,2]
[389004140,1759560641235,-500.0,0.00021917,2]
[389004142,1759560641244,-547.21,0.00021917,2]
[389004144,1759560641253,-1842.46,0.00021917,2]
[389004146,1759560641263,-500.0,0.00021917,2]
[389004148,1759560641272,-500.0,0.00021917,2]
[389004150,1759560641281,-503.79554296,0.00021917,2]
[389004152,1759560641290,-500.0,0.00021917,2]
[389004154,1759560641299,-500.0,0.00021917,2]
[389004156,1759560641309,-500.0,0.00021917,2]
[389004158,1759560641318,-500.0,0.00021917,2]
[389004160,1759560641327,-500.0,0.00021917,2]
[389004162,1759560641336,-457.05787363,0.00021917,2]
[389004164,1759560641345,-500.0,0.00021917,2]
[389004166,1759560641354,-500.0,0.00021917,2]
[389004168,1759560641363,-500.0,0.00021917,2]
[389004170,1759560641372,-500.0,0.00021917,2]
[389004172,1759560641381,-1374.26,0.00021917,2]
[389004174,1759560641390,-500.0,0.00021917,2]
[389004176,1759560641399,-495.91794609,0.00021917,2]
[389004178,1759560641408,-500.0,0.00021917,2]
[389004180,1759560641417,-500.0,0.00021917,2]
[389004182,1759560641426,-500.0,0.00021917,2]
[389004184,1759560641435,-500.0,0.00021917,2]
[389004186,1759560641444,-500.0,0.00021917,2]
[389004188,1759560641453,-500.0,0.00021917,2]
[389004190,1759560641462,-500.0,0.00021917,2]
[389004192,1759560641471,-3343.34,0.00021917,2]
[389004193,1759560641480,-500.0,0.00021917,2]
[389004196,1759560641490,-500.0,0.00021917,2]
[389004198,1759560641499,-500.0,0.00021917,2]
[389004200,1759560641507,-500.0,0.00021917,2]
[389004202,1759560641516,-500.0,0.00021917,2]
[389004204,1759560641525,-500.0,0.00021917,2]
[389004205,1759560641534,-500.0,0.00021917,2]
[389004207,1759560641544,-500.0,0.00021917,2]
[389004209,1759560641553,-500.0,0.00021917,2]
[389004211,1759560641562,-151.0,0.00021917,2]
[389004213,1759560641571,-500.0,0.00021917,2]
[389004215,1759560641580,-151.0,0.00021917,2]
[389004217,1759560641590,-500.0,0.00021917,2]
[389004219,1759560641599,-500.0,0.00021917,2]
[389004221,1759560641609,-500.0,0.00021917,2]
[389004223,1759560641619,-378.92053546,0.00021917,2]
[389004225,1759560641629,-500.0,0.00021917,2]
[389004227,1759560641638,-500.0,0.00021917,2]
[389004229,1759560641647,-500.0,0.00021917,2]
[389004231,1759560641656,-395.23049652,0.00021917,2]
[389004233,1759560641666,-500.0,0.00021917,2]
[389004235,1759560641675,-500.0,0.00021917,2]
[389004237,1759560641684,-151.0,0.00021917,2]
[389004239,1759560641693,-151.0,0.00021917,2]
[389004241,1759560641703,-151.0,0.00021917,2]
[389004243,1759560641712,-151.0,0.00021917,2]
[389004245,1759560641721,-151.0,0.00021917,2]
[389004247,1759560641730,-151.0,0.00021917,2]
[389004249,1759560641740,-151.0,0.00021917,2]
[389004251,1759560641749,-151.0,0.00021917,2]
[389004253,1759560641758,-500.0,0.00021917,2]
[389004254,1759560641767,-151.0,0.00021917,2]
[389004256,1759560641777,-151.0,0.00021917,2]
[389004258,1759560641787,-151.0,0.00021917,2]
[389004260,1759560641796,-280.118482,0.00021917,2]
[389004263,1759560641805,-500.0,0.00021917,2]
[389004265,1759560641816,-151.586398,0.00021917,2]
[389004267,1759560641825,-500.0,0.00021917,2]
[389004269,1759560641835,-321.6660236,0.00021917,2]
[389004271,1759560641844,-500.0,0.00021917,2]
[389004273,1759560641853,-500.0,0.00021917,2]
[389004275,1759560641862,-500.0,0.00021917,2]
[389004277,1759560641871,-631.64,0.00021917,2]
[389004279,1759560641881,-442.88149303,0.00021917,2]
[389004280,1759560641891,-500.0,0.00021917,2]
[389004282,1759560641901,-500.0,0.00021917,2]
[389004284,1759560641911,-500.0,0.00021917,2]
[389004287,1759560641920,-500.0,0.00021917,2]
[389004289,1759560641930,-777.68,0.00021917,2]
[389004291,1759560641939,-500.0,0.00021917,2]
[389004292,1759560641949,-500.0,0.00021917,2]
[389004295,1759560641958,-500.0,0.00021917,2]
[389004296,1759560641967,-485.23502919,0.00021917,2]
[389004299,1759560641981,-500.0,0.00021917,2]
[389004301,1759560641991,-997.49,0.00021917,2]
[389004302,1759560642000,-487.24973216,0.00021917,2]
[389004305,1759560642011,-835.29,0.00021917,2]
[389004307,1759560642020,-500.0,0.00021917,2]
[389004309,1759560642029,-500.0,0.00021917,2]
[389004311,1759560642038,-500.0,0.00021917,2]
[389004312,1759560642051,-500.0,0.00021917,2]
[389004315,1759560642062,-1053.37,0.00021917,2]
[389004317,1759560642072,-151.0,0.00021917,2]
[389004319,1759560642081,-151.0,0.00021917,2]
[389004321,1759560642091,-151.0,0.00021917,2]
[389004323,1759560642100,-151.0,0.00021917,2]
[389004325,1759560642109,-151.0,0.00021917,2]
[389004327,1759560642117,-151.0,0.00021917,2]
[389004329,1759560642126,-152.813654,0.00021917,2]
[389004331,1759560642135,-152.12701,0.00021917,2]
[389004333,1759560642145,-500.0,0.00021917,2]
[389004335,1759560642154,-500.0,0.00021917,2]
[389004337,1759560642164,-500.0,0.00021917,2]
[389004339,1759560642175,-366.12182424,0.00021917,2]
[389004341,1759560642185,-500.0,0.00021917,2]
[389004343,1759560642196,-500.0,0.00021917,2]
[389004345,1759560642207,-500.0,0.00021917,2]
[389004347,1759560642216,-151.0,0.00021917,2]
[389004349,1759560642225,-151.0,0.00021917,2]
[389004351,1759560642234,-151.0,0.00021917,2]
[389004353,1759560642243,-155.045436,0.00021917,2]
[389004355,1759560642252,-920.7,0.00021917,2]
[389004357,1759560642260,-1449.67,0.00021917,2]
[389004359,1759560642270,-500.0,0.00021917,2]
[389004361,1759560642279,-500.0,0.00021917,2]
[389004363,1759560642289,-151.0,0.00021917,2]
[389004365,1759560642301,-1075.68,0.00021917,2]
[389004367,1759560642310,-500.0,0.00021917,2]
[389004369,1759560642320,-732.66,0.00021917,2]
[389004370,1759560642332,-500.0,0.00021917,2]
[389004373,1759560642341,-1089.69,0.00021917,2]
[389004374,1759560642352,-500.0,0.00021917,2]
[389004377,1759560642361,-500.0,0.00021917,2]
[389004379,1759560642371,-500.0,0.00021917,2]
[389004381,1759560642380,-500.0,0.00021917,2]
[389004383,1759560642389,-500.0,0.00021917,2]
[389004385,1759560642399,-1450.42,0.00021917,2]
[389004387,1759560642408,-500.0,0.00021917,2]
[389004389,1759560642418,-500.0,0.00021917,2]
[389004391,1759560642427,-151.0,0.00021917,2]
[389004393,1759560642437,-151.0,0.00021917,2]
[389004395,1759560642446,-500.0,0.00021917,2]
[389004397,1759560642455,-500.0,0.00021917,2]
[389004399,1759560642464,-151.0,0.00021917,2]
[389004401,1759560642474,-151.0,0.00021917,2]
[389004403,1759560642483,-237.360647,0.00021917,2]
[389004405,1759560642492,-485.7486831,0.00021917,2]
[389004407,1759560642501,-500.0,0.00021917,2]
[389004409,1759560642511,-500.0,0.00021917,2]
[389004411,1759560642520,-500.0,0.00021917,2]
[389004413,1759560642529,-438.50681424,0.00021917,2]
[389004415,1759560642539,-500.0,0.00021917,2]
[389004418,1759560642548,-500.0,0.00021917,2]
[389004422,1759560642557,-533.72,0.00021917,2]
[389004424,1759560642566,-500.0,0.00021917,2]
[389004426,1759560642575,-500.0,0.00021917,2]
[389004428,1759560642584,-489.61416106,0.00021917,2]
[389004430,1759560642594,-500.0,0.00021917,2]
[389004432,1759560642603,-151.0,0.00021917,2]
[389004434,1759560642612,-151.0,0.00021917,2]
[389004435,1759560642622,-151.0,0.00021917,2]
[389004437,1759560642632,-151.0,0.00021917,2]
[389004439,1759560642641,-300.86542138,0.00021917,2]
[389004441,1759560642650,-500.0,0.00021917,2]
[389004443,1759560642659,-500.0,0.00021917,2]
[389004445,1759560642667,-447.73352119,0.00021917,2]
[389004447,1759560642676,-500.0,0.00021917,2]
[389004450,1759560642686,-500.0,0.00021917,2]
[389004452,1759560642695,-500.0,0.00021917,2]
[389004453,1759560642705,-501.27,0.00021917,2]
[389004455,1759560642715,-500.0,0.00021917,2]
[389004458,1759560642724,-500.0,0.00021917,2]
[389004460,1759560642736,-500.0,0.00021917,2]
[389004462,1759560642748,-545.19325996,0.00021917,2]
[389004464,1759560642758,-829.1,0.00021917,2]
[389004466,1759560642767,-465.01439612,0.00021917,2]
[389004468,1759560642776,-500.0,0.00021917,2]
[389004470,1759560642786,-151.0,0.00021917,2]
[389004471,1759560642797,-500.0,0.00021917,2]
[389004474,1759560642807,-500.0,0.00021917,2]
[389004476,1759560642817,-500.0,0.00021917,2]
[389004477,1759560642826,-500.0,0.00021917,2]
[389004479,1759560642836,-568.37,0.00021917,2]
[389004482,1759560642847,-231.67763548,0.00021917,2]
[389004484,1759560642857,-500.0,0.00021917,2]
[389004486,1759560642866,-500.0,0.00021917,2]
[389004488,1759560642875,-500.0,0.00021917,2]
[389004490,1759560642884,-500.0,0.00021917,2]
[389004492,1759560642895,-500.0,0.00021917,2]
[389004494,1759560642905,-500.0,0.00021917,2]
[389004496,1759560642914,-500.0,0.00021917,2]
[389004498,1759560642923,-500.0,0.00021917,2]
[389004500,1759560642933,-500.0,0.00021917,2]
[389004502,1759560642942,-500.0,0.00021917,2]